fUST/lending_fUST_20250916
["ID","MTS","AMOUNT","RATE_DAILY","PERIOD"]
[385746450,1758004240306,-484.68297499,0.00021917,2]
[385746452,1758004240315,-469.26261065,0.00021917,2]
[385746454,1758004240324,-480.0,0.00021917,2]
[385746456,1758004240333,-287.26032261,0.00021917,2]
[385746458,1758004240342,-494.87741621,0.00021917,2]
[385746459,1758004240351,-464.48698324,0.00021917,2]
[385746461,1758004240360,-465.15456973,0.00021917,2]
[385746463,1758004240369,-468.86698764,0.00021917,2]
[385746464,1758004240378,-480.0,0.00021917,2]
[385746465,1758004240387,-480.0,0.00021917,2]
[385746466,1758004240397,-480.0,0.00021917,2]
[385746467,1758004240406,-464.59230258,0.00021917,2]
[385746468,1758004240415,-486.7455634,0.00021917,2]
[385746469,1758004240424,-485.95709016,0.00021917,2]
[385746470,1758004240433,-434.41094054,0.00021917,2]
[385746471,1758004240442,-488.05780485,0.00021917,2]
[385746472,1758004240452,-480.0,0.00021917,2]
[385746473,1758004240463,-480.0,0.00021917,2]
[385746474,1758004240472,-480.0,0.00021917,2]
[385746475,1758004240482,-469.91662688,0.00021917,2]
[385746476,1758004240491,-480.0,0.00021917,2]
[385746477,1758004240500,-485.70894745,0.00021917,2]
[385746478,1758004240509,-480.0,0.00021917,2]
[385746479,1758004240518,-480.0,0.00021917,2]
[385746480,1758004240528,-480.0,0.00021917,2]
[385746481,1758004240536,-468.77117198,0.00021917,2]
[385746482,1758004240545,-480.0,0.00021917,2]
[385746483,1758004240554,-543.24401079,0.00021917,2]
[385746484,1758004240563,-480.0,0.00021917,2]
[385746485,1758004240573,-466.31683431,0.00021917,2]
[385746486,1758004240582,-466.61298318,0.00021917,2]
[385746487,1758004240590,-466.57616418,0.00021917,2]
[385746488,1758004240599,-464.61979719,0.00021917,2]
[385746489,1758004240608,-464.12343361,0.00021917,2]
[385746490,1758004240617,-480.0,0.00021917,2]
[385746491,1758004240627,-480.0,0.00021917,2]
[385746492,1758004240636,-468.97165775,0.00021917,2]
[385746493,1758004240645,-480.0,0.00021917,2]
[385746494,1758004240654,-466.34238129,0.00021917,2]
[385746495,1758004240663,-466.05891538,0.00021917,2]
[385746497,1758004240672,-480.0,0.00021917,2]
[385746498,1758004240681,-498.61244455,0.00021917,2]
[385746500,1758004240689,-480.0,0.00021917,2]
[385746501,1758004240697,-480.0,0.00021917,2]
[385746502,1758004240706,-663.1,0.00021917,2]
[385746503,1758004240716,-467.45736426,0.00021917,2]
[385746504,1758004240724,-480.0,0.00021917,2]
[385746505,1758004240733,-480.0,0.00021917,2]
[385746506,1758004240743,-480.0,0.00021917,2]
[385746507,1758004240754,-462.99680815,0.00021917,2]
[385746508,1758004240763,-480.0,0.00021917,2]
[385746509,1758004240774,-471.28859209,0.00021917,2]
[385746510,1758004240783,-480.0,0.00021917,2]
[385746511,1758004240792,-480.0,0.00021917,2]
[385746512,1758004240801,-463.0992326,0.00021917,2]
[385746513,1758004240810,-480.0,0.00021917,2]
[385746514,1758004240818,-480.0,0.00021917,2]
[385746515,1758004240827,-480.0,0.00021917,2]
[385746516,1758004240836,-462.19500077,0.00021917,2]
[385746517,1758004240846,-480.0,0.00021917,2]
[385746518,1758004240855,-1009.19979243,0.00021917,2]
[385746519,1758004240864,-480.0,0.00021917,2]
[385746520,1758004240873,-480.0,0.00021917,2]
[385746521,1758004240882,-480.0,0.00021917,2]
[385746522,1758004240891,-462.25045267,0.00021917,2]
[385746523,1758004240901,-480.0,0.00021917,2]
[385746524,1758004240910,-485.14664405,0.00021917,2]
[385746525,1758004240919,-480.0,0.00021917,2]
[385746526,1758004240928,-482.49795421,0.00021917,2]
[385746527,1758004240936,-480.0,0.00021917,2]
[385746528,1758004240944,-480.0,0.00021917,2]
[385746529,1758004241046,-480.0,0.00021917,2]
[385746530,1758004241055,-465.11570822,0.00021917,2]
[385746531,1758004241065,-468.02304665,0.00021917,2]
[385746532,1758004241075,-480.0,0.00021917,2]
[385746533,1758004241084,-462.99820776,0.00021917,2]
[385746534,1758004241093,-480.0,0.00021917,2]
[385746535,1758004241103,-480.0,0.00021917,2]
[385746536,1758004241113,-569.43925677,0.00021917,2]
[385746537,1758004241122,-480.0,0.00021917,2]
[385746538,1758004241131,-450.24233419,0.00021917,2]
[385746539,1758004241142,-480.0,0.00021917,2]
[385746540,1758004241156,-480.0,0.00021917,2]
[385746541,1758004241166,-480.0,0.00021917,2]
[385746542,1758004241175,-480.0,0.00021917,2]
[385746543,1758004241185,-480.0,0.00021917,2]
[385746544,1758004241194,-663.19,0.00021917,2]
[385746545,1758004241203,-575.14382805,0.00021917,2]
[385746546,1758004241214,-492.93845048,0.00021917,2]
[385746547,1758004241222,-480.0,0.00021917,2]
[385746548,1758004241232,-371.44676225,0.00021917,2]
[385746549,1758004241241,-462.23652611,0.00021917,2]
[385746550,1758004241251,-466.35324129,0.00021917,2]
[385746551,1758004241260,-480.0,0.00021917,2]
[385746552,1758004241270,-480.0,0.00021917,2]
[385746553,1758004241279,-480.0,0.00021917,2]
[385746554,1758004241288,-480.0,0.00021917,2]
[385746555,1758004241297,-480.0,0.00021917,2]
[385746556,1758004241306,-480.0,0.00021917,2]
[385746557,1758004241315,-480.0,0.00021917,2]
[385746558,1758004241325,-4071.39,0.00021917,2]
[385746559,1758004241334,-463.00077379,0.00021917,2]
[385746560,1758004241344,-480.0,0.00021917,2]
[385746561,1758004241354,-469.6489429,0.00021917,2]
[385746562,1758004241364,-480.0,0.00021917,2]
[385746563,1758004241373,-480.0,0.00021917,2]
[385746564,1758004241382,-480.0,0.00021917,2]
[385746565,1758004241391,-462.64317986,0.00021917,2]
[385746566,1758004241401,-480.0,0.00021917,2]
[385746567,1758004241410,-500.0,0.00021917,2]
[385746568,1758004241419,-480.0,0.00021917,2]
[385746569,1758004241428,-467.76891415,0.00021917,2]
[385746570,1758004241437,-480.0,0.00021917,2]
[385746571,1758004241447,-480.0,0.00021917,2]
[385746572,1758004241456,-466.42925234,0.00021917,2]
[385746573,1758004241466,-461.7460389,0.00021917,2]
[385746574,1758004241476,-480.0,0.00021917,2]
[385746575,1758004241485,-480.0,0.00021917,2]
[385746576,1758004241495,-463.9029876,0.00021917,2]
[385746577,1758004241504,-480.0,0.00021917,2]
[385746578,1758004241513,-480.0,0.00021917,2]
[385746579,1758004241522,-480.0,0.00021917,2]
[385746580,1758004241531,-480.0,0.00021917,2]
[385746581,1758004241540,-480.0,0.00021917,2]
[385746582,1758004241550,-461.10083384,0.00021917,2]
[385746583,1758004241558,-480.0,0.00021917,2]
[385746584,1758004241567,-334.15543278,0.00021917,2]
[385746585,1758004241577,-564.74982413,0.00021917,2]
[385746586,1758004241586,-460.77305998,0.00021917,2]
[385746587,1758004241595,-605.69,0.00021917,2]
[385746588,1758004241604,-487.62720452,0.00021917,2]
[385746589,1758004241613,-480.0,0.00021917,2]
[385746590,1758004241622,-480.0,0.00021917,2]
[385746591,1758004241632,-480.0,0.00021917,2]
[385746592,1758004241643,-480.0,0.00021917,2]
[385746593,1758004241652,-480.0,0.00021917,2]
[385746594,1758004241662,-480.0,0.00021917,2]
[385746595,1758004241671,-480.0,0.00021917,2]
[385746596,1758004241680,-480.0,0.00021917,2]
[385746597,1758004241689,-480.0,0.00021917,2]
[385746598,1758004241698,-480.0,0.00021917,2]
[385746599,1758004241706,-487.99398473,0.00021917,2]
[385746600,1758004241716,-1575.66,0.00021917,2]
[385746601,1758004241725,-462.402542,0.00021917,2]
[385746602,1758004241734,-474.22941731,0.00021917,2]
[385746603,1758004241743,-465.17336725,0.00021917,2]
[385746604,1758004241752,-480.0,0.00021917,2]
[385746605,1758004241760,-357.3174706,0.00021917,2]
[385746606,1758004241769,-480.0,0.00021917,2]
[385746607,1758004241778,-480.0,0.00021917,2]
[385746608,1758004241787,-468.10708715,0.00021917,2]
[385746609,1758004241796,-500.0,0.00021917,2]
[385746610,1758004241805,-500.0,0.00021917,2]
[385746611,1758004241814,-467.86011658,0.00021917,2]
[385746612,1758004241824,-480.0,0.00021917,2]
[385746613,1758004241835,-480.0,0.00021917,2]
[385746614,1758004241845,-480.0,0.00021917,2]
[385746615,1758004241854,-480.0,0.00021917,2]
[385746616,1758004241863,-480.0,0.00021917,2]
[385746617,1758004241872,-390.69593061,0.00021917,2]
[385746618,1758004241882,-480.0,0.00021917,2]
[385746619,1758004241891,-480.0,0.00021917,2]
[385746620,1758004241900,-487.5404281,0.00021917,2]
[385746621,1758004241909,-480.0,0.00021917,2]
[385746622,1758004241918,-764.21,0.00021917,2]
[385746623,1758004241927,-480.0,0.00021917,2]
[385746624,1758004241937,-480.0,0.00021917,2]
[385746625,1758004241946,-1422.4355672,0.00021964,2]
[385746626,1758004241955,-502.05338767,0.00021973,2]
[385746627,1758004241964,-555.90525608,0.00021973,2]
[385746628,1758004241973,-500.0,0.00021973,2]
[385746629,1758004241982,-502.65541346,0.00021973,2]
[385746630,1758004241991,-500.0,0.00021973,2]
[385746631,1758004242000,-500.0,0.00021973,2]
[385746632,1758004242009,-500.0,0.00021973,2]
[385746633,1758004242018,-500.0,0.00021973,2]
[385746634,1758004242027,-500.0,0.00021973,2]
[385746635,1758004242036,-501.77892036,0.00021973,2]
[385746636,1758004242045,-500.0,0.00021973,2]
[385746637,1758004242054,-500.0,0.00021973,2]
[385746638,1758004242067,-500.0,0.00021973,2]
[385746639,1758004242076,-500.75195611,0.00021973,2]
[385746640,1758004242085,-501.65930221,0.00021973,2]
[385746641,1758004242094,-500.0,0.00021973,2]
[385746642,1758004242103,-500.0,0.00021973,2]
[385746643,1758004242113,-500.0,0.00021973,2]
[385746644,1758004242123,-174.58159794,0.00021973,2]
[385746645,1758004242136,-501.40540503,0.00021973,2]
[385746646,1758004242147,-501.98150874,0.00021973,2]
[385746647,1758004242156,-500.0,0.00021973,2]
[385746648,1758004242165,-500.0,0.00021973,2]
[385746649,1758004242174,-500.0,0.00021973,2]
[385746650,1758004242184,-500.0,0.00021973,2]
[385746651,1758004242193,-500.0,0.00021973,2]
[385746652,1758004242203,-501.01346299,0.00021973,2]
[385746653,1758004242212,-500.0,0.00021973,2]
[385746654,1758004242222,-500.0,0.00021973,2]
[385746655,1758004242232,-293.67466398,0.00021973,2]
[385746656,1758004242245,-500.0,0.00021973,2]
[385746657,1758004242255,-500.0,0.00021973,2]
[385746658,1758004242264,-500.0,0.00021973,2]
[385746659,1758004242274,-501.33132528,0.00021973,2]
[385746660,1758004242283,-500.0,0.00021973,2]
[385746661,1758004242292,-501.51113363,0.00021973,2]
[385746662,1758004242302,-502.53041432,0.00021973,2]
[385746663,1758004242311,-504.74651727,0.00021973,2]
[385746664,1758004242321,-500.0,0.00021973,2]
[385746665,1758004242330,-500.0,0.00021973,2]
[385746666,1758004242339,-20405.68915621,0.0002199,2]
[385746667,1758004242349,-355.83135199,0.00022,2]
[385746668,1758004242358,-300.0,0.0002201,2]
[385746669,1758004242367,-233.29513139,0.00022038,2]
[385746670,1758004242376,-160.0,0.00022038,2]
[385746671,1758004242385,-160.0,0.00022042,2]
[385746672,1758004242394,-217.86301978,0.00022042,2]
[385746673,1758004242403,-417.15472785,0.00022042,2]
[385746674,1758004242412,-160.0,0.00022042,2]
[385746675,1758004242421,-160.0,0.00022043,2]
[385746676,1758004242431,-160.0,0.00022043,2]
[385746677,1758004242442,-160.0,0.00022043,2]
[385746678,1758004242451,-847.61663983,0.00022043,2]
[385746679,1758004242461,-500.0,0.00022073,2]
[385746680,1758004242470,-500.0,0.00022073,2]
[385746681,1758004242479,-500.0,0.00022073,2]
[385746682,1758004242488,-500.0,0.00022073,2]
[385746683,1758004242497,-500.0,0.00022073,2]
[385746684,1758004242506,-351.43298803,0.00022078,2]
[385746685,1758004242515,-2394.87,0.0002209,2]
[385746686,1758004242523,-417.15472785,0.00022091,3]
[385746687,1758004242532,-28405.1425221,0.00022091,3]
[385746688,1758004242541,-450.0,0.00022147,2]
[385746689,1758004242550,-661.96846851,0.00022163,2]
[385746690,1758004242559,-500.68439844,0.00022173,2]
[385746691,1758004242568,-480.0,0.00022191,3]
[385746692,1758004242577,-480.0,0.00022191,3]
[385746693,1758004242586,-844.19,0.00022191,3]
[385746694,1758004242595,-480.0,0.00022191,3]
[385746695,1758004242604,-468.05828872,0.00022191,3]
[385746696,1758004242613,-480.0,0.00022191,3]
[385746697,1758004242622,-480.0,0.00022191,3]
[385746698,1758004242632,-480.0,0.00022191,3]
[385746699,1758004242641,-480.0,0.00022191,3]
[385746700,1758004242650,-480.0,0.00022191,3]
[385746701,1758004242659,-480.0,0.00022191,3]
[385746702,1758004242668,-480.0,0.00022191,3]
[385746703,1758004242677,-480.0,0.00022191,3]
[385746704,1758004242686,-325.96086701,0.00022191,3]
[385746705,1758004242695,-480.0,0.00022191,3]
[385746706,1758004242704,-468.24552515,0.00022191,3]
[385746707,1758004242713,-480.0,0.00022191,3]
[385746708,1758004242722,-480.0,0.00022191,3]
[385746709,1758004242731,-480.0,0.00022191,3]
[385746710,1758004242740,-247.27819196,0.00022191,3]
[385746711,1758004242749,-480.0,0.00022191,3]
[385746713,1758004242758,-480.0,0.00022191,3]
[385746714,1758004242767,-480.0,0.00022191,3]
[385746715,1758004242776,-536.21158563,0.00022191,3]
[385746716,1758004242786,-480.0,0.00022191,3]
[385746717,1758004242795,-480.0,0.00022191,3]
[385746718,1758004242805,-480.0,0.00022191,3]
[385746719,1758004242814,-480.0,0.00022191,3]
[385746720,1758004242823,-480.0,0.00022191,3]
[385746721,1758004242832,-480.0,0.00022191,3]
[385746722,1758004242841,-510.07586565,0.00022191,3]
[385746724,1758004242849,-168.58702569,0.00022191,3]
[385746725,1758004242858,-472.93322358,0.00022191,3]
[385746726,1758004242867,-209.24715129,0.00022191,3]
[385746727,1758004242877,-480.0,0.00022191,3]
[385746728,1758004242886,-480.0,0.00022191,3]
[385746729,1758004242895,-563.84058516,0.00022191,3]
[385746730,1758004242904,-476.82146224,0.00022191,3]
[385746731,1758004242913,-480.0,0.00022191,3]
[385746732,1758004242922,-480.0,0.00022191,3]
[385746733,1758004242931,-480.0,0.00022191,3]
[385746734,1758004242941,-467.79648607,0.00022191,3]
[385746736,1758004242950,-441.77254458,0.00022191,3]
[385746738,1758004242959,-480.0,0.00022191,3]
[385746740,1758004242971,-480.0,0.00022191,3]
[385746742,1758004242980,-303.33122266,0.00022191,3]
[385746743,1758004242988,-480.0,0.00022191,3]
[385746744,1758004242998,-480.0,0.00022191,3]
[385746745,1758004243007,-480.0,0.00022191,3]
[385746746,1758004243016,-663.1,0.00022191,3]
[385746747,1758004243025,-480.0,0.00022191,3]
[385746748,1758004243034,-480.0,0.00022191,3]
[385746749,1758004243043,-480.0,0.00022191,3]
[385746750,1758004243052,-480.0,0.00022191,3]
[385746751,1758004243061,-461.88043554,0.00022191,3]
[385746752,1758004243074,-480.0,0.00022191,3]
[385746753,1758004243083,-480.0,0.00022191,3]
[385746754,1758004243092,-480.0,0.00022191,3]
[385746755,1758004243178,-480.0,0.00022191,3]
[385746756,1758004243187,-480.0,0.00022191,3]
[385746757,1758004243196,-480.0,0.00022191,3]
[385746758,1758004243206,-480.0,0.00022191,3]
[385746759,1758004243216,-480.0,0.00022191,3]
[385746760,1758004243225,-481.37075762,0.00022191,3]
[385746761,1758004243235,-162.25740872,0.00022191,3]
[385746762,1758004243244,-480.0,0.00022191,3]
[385746763,1758004243253,-480.0,0.00022191,3]
[385746764,1758004243263,-480.0,0.00022191,3]
[385746765,1758004243272,-663.19,0.00022191,3]
[385746766,1758004243281,-480.0,0.00022191,3]
[385746767,1758004243290,-480.0,0.00022191,3]
[385746768,1758004243300,-480.0,0.00022191,3]
[385746769,1758004243310,-480.0,0.00022191,3]
[385746770,1758004243319,-480.0,0.00022191,3]
[385746771,1758004243328,-4071.39,0.00022191,3]
[385746772,1758004243337,-480.0,0.00022191,3]
[385746773,1758004243346,-480.0,0.00022191,3]
[385746774,1758004243355,-346.0357999,0.00022191,3]
[385746775,1758004243364,-464.32865758,0.00022191,3]
[385746776,1758004243374,-480.0,0.00022191,3]
[385746777,1758004243383,-417.15472785,0.00022191,3]
[385746778,1758004243393,-480.0,0.00022191,3]
[385746779,1758004243402,-480.0,0.00022191,3]
[385746780,1758004243411,-480.0,0.00022191,3]
[385746782,1758004243420,-480.0,0.00022191,3]
[385746784,1758004243430,-480.0,0.00022191,3]
[385746785,1758004243439,-480.0,0.00022191,3]
[385746786,1758004243448,-480.0,0.00022191,3]
[385746787,1758004243457,-605.69,0.00022191,3]
[385746788,1758004243467,-480.0,0.00022191,3]
[385746789,1758004243477,-480.0,0.00022191,3]
[385746790,1758004243486,-480.0,0.00022191,3]
[385746792,1758004243496,-480.0,0.00022191,3]
[385746793,1758004243505,-480.0,0.00022191,3]
[385746795,1758004243514,-480.0,0.00022191,3]
[385746797,1758004243524,-480.0,0.00022191,3]
[385746799,1758004243533,-480.0,0.00022191,3]
[385746801,1758004243542,-1575.66,0.00022191,3]
[385746802,1758004243551,-480.0,0.00022191,3]
[385746803,1758004243560,-526.81,0.00022191,3]
[385746804,1758004243569,-480.0,0.00022191,3]
[385746805,1758004243579,-480.0,0.00022191,3]
[385746806,1758004243589,-480.0,0.00022191,3]
[385746807,1758004243598,-480.0,0.00022191,3]
[385746808,1758004243608,-480.0,0.00022191,3]
[385746809,1758004243618,-480.0,0.00022191,3]
[385746810,1758004243627,-764.21,0.00022191,3]
[385746811,1758004243636,-480.0,0.00022191,3]
[385746812,1758004243645,-480.0,0.00022191,3]
[385746813,1758004243654,-3000.0,0.00022199,2]
[385746814,1758004243664,-24333.25,0.000222,7]
[385746815,1758004243673,-417.15472785,0.000222,7]
[385746816,1758004243683,-151.0,0.000222,7]
[385746817,1758004243692,-449.208965,0.000222,7]
[385746818,1758004243701,-449.208965,0.000222,7]
[385746819,1758004243711,-449.208965,0.000222,7]
[385746820,1758004243722,-161.289806,0.000222,7]
[385746821,1758004243731,-449.208965,0.000222,7]
[385746822,1758004243741,-600.0,0.00022284,2]
[385746823,1758004243750,-308.09935344,0.00022363,2]
[385746824,1758004243759,-502.34057584,0.00022421,2]
[385746825,1758004243768,-1000.0,0.00022421,2]
[385746826,1758004243778,-1000.0,0.00022421,2]
[385746827,1758004243787,-377.66485435,0.00022421,2]
[385746828,1758004243796,-1111.72575167,0.00022421,2]
[385746829,1758004243805,-1000.0,0.00022421,2]
[385746830,1758004243814,-1000.0,0.00022421,2]
[385746831,1758004243823,-703.72204021,0.00022421,2]
[385746832,1758004243832,-1000.0,0.00022421,2]
[385746833,1758004243842,-219.55204424,0.00022421,2]
[385746834,1758004243852,-1000.0,0.00022421,2]
[385746835,1758004243862,-1010.05913368,0.00022421,2]
[385746836,1758004243873,-1000.0,0.00022421,2]
[385746837,1758004243881,-1000.0,0.00022421,2]
[385746838,1758004243891,-151.0,0.00022421,7]
[385746839,1758004243900,-151.0,0.00022421,7]
[385746840,1758004243909,-151.0,0.00022421,7]
[385746841,1758004243918,-153.165091,0.00022421,7]
[385746842,1758004243927,-160.918986,0.00022421,7]
[385746843,1758004243936,-151.0,0.00022421,7]
[385746844,1758004243945,-151.0,0.00022421,7]
[385746845,1758004243954,-151.0,0.00022421,7]
[385746846,1758004243963,-159.554861,0.00022421,7]
[385746847,1758004243973,-151.0,0.00022421,7]
[385746848,1758004243982,-151.0,0.00022421,7]
[385746849,1758004243991,-480.54225241,0.00022465,3]
[385746850,1758004244000,-844.19,0.00022465,3]
[385746851,1758004244009,-345.27893656,0.00022465,3]
[385746852,1758004244018,-480.0,0.00022465,3]
[385746853,1758004244026,-480.0,0.00022465,3]
[385746854,1758004244035,-468.15418675,0.00022465,3]
[385746855,1758004244044,-480.0,0.00022465,3]
[385746856,1758004244053,-480.0,0.00022465,3]
[385746857,1758004244062,-472.77516837,0.00022465,3]
[385746858,1758004244074,-480.0,0.00022465,3]
[385746859,1758004244082,-214.38122862,0.00022465,3]
[385746860,1758004244090,-368.58497926,0.00022465,3]
[385746861,1758004244099,-243.69315676,0.00022465,3]
[385746862,1758004244109,-480.0,0.00022465,3]
[385746863,1758004244118,-480.0,0.00022465,3]
[385746864,1758004244127,-480.0,0.00022465,3]
[385746865,1758004244137,-480.0,0.00022465,3]
[385746866,1758004244147,-243.29623334,0.00022465,3]
[385746867,1758004244156,-480.0,0.00022465,3]
[385746868,1758004244165,-151.0,0.00022465,7]
[385746869,1758004244174,-151.0,0.00022465,7]
[385746870,1758004244183,-480.0,0.00022465,3]
[385746871,1758004244192,-480.0,0.00022465,3]
[385746872,1758004244201,-171.55262148,0.00022465,3]
[385746873,1758004244210,-157.099397,0.00022465,7]
[385746874,1758004244221,-480.0,0.00022465,3]
[385746875,1758004244230,-480.0,0.00022465,3]
[385746876,1758004244239,-480.0,0.00022465,3]
[385746877,1758004244249,-463.36,0.00022465,3]
[385746878,1758004244258,-480.0,0.00022465,3]
[385746879,1758004244267,-151.0,0.00022465,7]
[385746880,1758004244276,-151.0,0.00022465,7]
[385746881,1758004244286,-480.0,0.00022465,3]
[385746882,1758004244295,-151.0,0.00022465,7]
[385746883,1758004244304,-480.0,0.00022465,3]
[385746884,1758004244313,-151.0,0.00022465,7]
[385746885,1758004244323,-480.0,0.00022465,3]
[385746886,1758004244332,-151.0,0.00022465,7]
[385746887,1758004244341,-202.442081,0.00022465,7]
[385746888,1758004244350,-480.0,0.00022465,3]
[385746889,1758004244359,-480.0,0.00022465,3]
[385746890,1758004244368,-480.0,0.00022465,3]
[385746891,1758004244376,-663.1,0.00022465,3]
[385746892,1758004244385,-151.0,0.00022465,7]
[385746893,1758004244394,-151.0,0.00022465,7]
[385746894,1758004244403,-480.0,0.00022465,3]
[385746895,1758004244412,-282.541769,0.00022465,7]
[385746896,1758004244422,-151.0,0.00022465,7]
[385746897,1758004244431,-480.0,0.00022465,3]
[385746898,1758004244440,-151.0,0.00022465,7]
[385746899,1758004244449,-201.452096,0.00022465,7]
[385746900,1758004244458,-480.0,0.00022465,3]
[385746901,1758004244467,-480.0,0.00022465,3]
[385746902,1758004244477,-480.0,0.00022465,3]
[385746903,1758004244486,-480.0,0.00022465,3]
[385746904,1758004244496,-480.0,0.00022465,3]
[385746905,1758004244505,-480.0,0.00022465,3]
[385746906,1758004244515,-480.0,0.00022465,3]
[385746907,1758004244524,-480.0,0.00022465,3]
[385746908,1758004244533,-663.19,0.00022465,3]
[385746909,1758004244543,-480.0,0.00022465,3]
[385746910,1758004244552,-480.0,0.00022465,3]
[385746911,1758004244561,-176.07166876,0.00022465,3]
[385746912,1758004244570,-4071.39,0.00022465,3]
[385746913,1758004244580,-480.0,0.00022465,3]
[385746914,1758004244589,-480.0,0.00022465,3]
[385746915,1758004244598,-480.0,0.00022465,3]
[385746916,1758004244608,-480.0,0.00022465,3]
[385746917,1758004244617,-480.0,0.00022465,3]
[385746918,1758004244626,-151.0,0.00022465,7]
[385746919,1758004244635,-480.0,0.00022465,3]
[385746920,1758004244644,-605.69,0.00022465,3]
[385746921,1758004244653,-480.0,0.00022465,3]
[385746922,1758004244663,-480.0,0.00022465,3]
[385746923,1758004244672,-338.27722451,0.00022465,3]
[385746924,1758004244681,-480.0,0.00022465,3]
[385746925,1758004244690,-480.0,0.00022465,3]
[385746926,1758004244699,-480.0,0.00022465,3]
[385746927,1758004244708,-480.0,0.00022465,3]
[385746928,1758004244717,-480.0,0.00022465,3]
[385746930,1758004244727,-1575.66,0.00022465,3]
[385746932,1758004244736,-253.85026314,0.00022465,3]
[385746934,1758004244745,-480.0,0.00022465,3]
[385746936,1758004244754,-151.0,0.00022465,7]
[385746938,1758004244763,-480.0,0.00022465,3]
[385746940,1758004244773,-480.0,0.00022465,3]
[385746942,1758004244782,-480.0,0.00022465,3]
[385746944,1758004244791,-480.0,0.00022465,3]
[385746946,1758004244801,-384.31,0.00022465,3]
[385746948,1758004244810,-764.21,0.00022465,3]
[385746950,1758004244819,-480.0,0.00022465,3]
[385746951,1758004244828,-480.0,0.00022465,3]
[385746953,1758004244837,-4000.0,0.00022499,2]
[385746955,1758004244846,-2344.49,0.000225,7]
[385746956,1758004244855,-1000.0,0.00022521,2]
[385746957,1758004244864,-1000.0,0.00022521,2]
[385746958,1758004244873,-1000.0,0.00022521,2]
[385746959,1758004244882,-1000.0,0.00022521,2]
[385746960,1758004244894,-1000.0,0.00022521,2]
[385746961,1758004244903,-1000.0,0.00022521,2]
[385746962,1758004244913,-1000.0,0.00022521,2]
[385746963,1758004244922,-1003.87396356,0.00022521,2]
[385746964,1758004244935,-1000.0,0.00022521,2]
[385746965,1758004244946,-1000.0,0.00022521,2]
[385746966,1758004244956,-500.98431332,0.00022521,2]
[385746967,1758004244966,-1000.0,0.00022521,2]
[385746968,1758004244975,-1000.0,0.00022521,2]
[385746969,1758004244984,-1000.0,0.00022521,2]
[385746970,1758004244993,-1000.0,0.00022521,2]
[385746971,1758004245002,-626.12047537,0.00022521,2]
[385746972,1758004245011,-1000.0,0.00022521,2]
[385746973,1758004245020,-1000.0,0.00022521,2]
[385746974,1758004245029,-1000.0,0.00022621,2]
[385746975,1758004245038,-501.55296951,0.00022621,2]
[385746976,1758004245047,-1020.96139323,0.00022621,2]
[385746977,1758004245056,-1000.0,0.00022621,2]
[385746978,1758004245146,-151.873343,0.00022736,7]
[385746979,1758004245156,-151.0,0.00022736,7]
[385746980,1758004245165,-152.337344,0.00022736,7]
[385746981,1758004245174,-151.0,0.00022736,7]
[385746982,1758004245183,-188.26456,0.00022736,7]
[385746983,1758004245192,-157.196543,0.00022736,7]